Cogmind - Beta 10.2 @@@ ROGUE MODE // 2022.02.06 @ 19:51:12 Player: Burgers_Lettuce Result: Self-destructed Performance ------------- Evolutions (2) 1000 Regions Visited (3) 600 Robots Destroyed (21) 105 Value Destroyed (706) 706 Prototype IDs (2) 40 Alien Tech Used (0) 0 Bonus (286) 286 TOTAL SCORE: 2737 Bonus ------- Pacifist 200 High Alert Combat Kills 86 Cogmind --------- Core Integrity 242/550 Matter 80/300 Energy 70/100 System Corruption 0% Temperature Cool (9) Movement Core (200) Ox3 Location -8/Materials Parts ------- > --- POWER (1) -------- (None) > --- PROPULSION (3) --- (None) > --- UTILITY (4) ------ Improved Heat Sink Small Storage Unit Actuator Array > --- WEAPON (3) ------- (None) > --- INVENTORY (6) ---- Light Treads Aluminum Leg Wheel Minigun Grenade Launcher Peak State ------------ > --- POWER ------------ Improved Ion Engine > --- PROPULSION ------- Advanced Treads Wheel Gravmag System > --- UTILITY ---------- Improved Heat Sink Small Storage Unit ECM Suite Hardened Medium Armor Plating > --- WEAPON ----------- Enhanced Autogun Enhanced Autogun Mini Grenade Launcher > --- INVENTORY -------- Improved Ion Engine Light Treads Aluminum Leg Wheel Minigun Grenade Launcher [Rating: 28] Favorites ----------- Power Improved Ion Engine Engine Improved Ion Engine Propulsion Wheel Treads Advanced Treads Wheel Wheel Hover Unit Gravmag System Utility Small Storage Unit Device ECM Suite Storage Small Storage Unit Protection Hardened Medium Armor Plating Weapon Enhanced Autogun Energy Gun EM Shotgun Ballistic Gun Enhanced Autogun Launcher Mini Grenade Launcher Slashing Weapon Mining Claw Build | -11 -10 -9 -8 ------- Run | Scr Mat Mat Mat Slots Evolved 4 | . . 2 2 Power . | . . . . Propulsion 1 | . . . 1 Utility 2 | . . 2 . Weapon 1 | . . . 1 Parts Attached 28 | 6 1 15 6 Power 4 | 1 . 2 1 Engine 4 | 1 . 2 1 Core . | . . . . Reactor . | . . . . Propulsion 4 | 2 . 1 1 Treads 2 | 1 . 1 . Leg . | . . . . Wheel 1 | 1 . . . Hover 1 | . . . 1 Flight . | . . . . Utility 7 | 1 1 3 2 Device 4 | . 1 1 2 Storage 1 | 1 . . . Processor . | . . . . Hackware . | . . . . Protection 2 | . . 2 . Artifact . | . . . . Weapon 13 | 2 . 9 2 Energy Gun 1 | . . . 1 Energy Cannon . | . . . . Ballistic Gun 8 | 2 . 6 . Ballistic Cannon . | . . . . Launcher 2 | . . 1 1 Special Weapon . | . . . . Impact Weapon . | . . . . Slashing Weapon 2 | . . 2 . Piercing Weapon . | . . . . Special Melee Weapon . | . . . . Unidentified Prototypes 1 | . . 1 . Parts Lost 10 | . . . 10 Power 2 | . . . 2 Propulsion 2 | . . . 2 Utility 2 | . . . 2 Weapon 4 | . . . 4 Highest Loss Streak 10 | . . . 10 Average Slot Usage (%) 88 | . 94 88 87 Engine 10 | . 14 11 8 Treads 10 | . 14 11 8 Wheel 10 | . 14 11 7 Device 17 | . 8 18 18 Storage 10 | . 14 11 9 Protection 4 | . . 3 8 Ballistic Gun 19 | . 28 19 17 Launcher 4 | . . 1 8 Naked Turns . | . . . . Heaviest Build 28 | 11 12 27 28 Greatest Support 22 | 20 10 22 22 Greatest Overweight (x) 5 | 1 1 1 5 Average Overweight (x) . | . 1 . 1 Largest Inventory Capacity 6 | 6 6 6 6 Average Capacity 5 | 5 6 6 6 Most Carried 6 | 5 6 6 6 Average Carried 5 | 2 5 6 5 Final Capacity 6 | 6 6 6 6 Final Carried 6 | 5 6 6 5 Class Distribution -------------------- 92% | Mutant 5% | Tank Dominant Class ---------------- Mutant | -10/Materials Mutant | -9/Materials Mutant | -8/Materials Resources | -11 -10 -9 -8 ----------- Run | Scr Mat Mat Mat Matter Collected 582 | 200 . 124 258 Remotely . | . . . . Salvage Created 668 | . . 166 502 Parts 33 | . . 10 23 Haulers Intercepted . | . . . . Recyclers Shooed 4 | . . 2 2 Parts Field Recycled . | . . . . Retrieved Matter . | . . . . Parts Self-Destructed . | . . . . Prevented . | . . . . Kills | -11 -10 -9 -8 ------- Run | Scr Mat Mat Mat Combat Hostiles Destroyed 18 | . . 3 15 Guns 9 | . . 3 6 AOE 9 | . . . 9 Classes Destroyed 6 | . . 3 3 Recycler 2 | . . 1 1 Operator 1 | . . . 1 Swarmer 4 | . . . 4 Grunt 10 | . . 1 9 Brawler 1 | . . . 1 Sentry 3 | . . 2 1 Best Kill Streak 9 | . . 2 9 Combat Bots Only 8 | . . 1 8 Max Kills in Single Turn 3 | . . 1 3 Gunslinging . | . . . . Exploded 3 | . . . 3 Melee . | . . . . Uniques/NPCs Destroyed . | . . . . Combat | -11 -10 -9 -8 -------- Run | Scr Mat Mat Mat Damage Taken 1584 | . 16 130 1438 Core 350 | . 16 26 308 Absorbed by Shields . | . . . . Core Remaining (%) 95 | 100 93 93 . Volleys Fired 41 | . . 12 29 Largest 3 | . . 2 3 Hottest 80 | . . 50 80 Shots Fired 90 | . . 23 67 Gun 78 | . . 22 56 Cannon . | . . . . Launcher 12 | . . 1 11 Special . | . . . . Kinetic 78 | . . 22 56 Thermal . | . . . . Explosive 12 | . . 1 11 Electromagnetic . | . . . . Robot Hit Streak 13 | . . 5 13 Robot Miss Streak 5 | . . 5 3 Penetration Max . | . . . . Secondary Targets . | . . . . Shots Hit Robots 53 | . . 15 38 Core Hits 52 | . . 8 44 Critical Hits . | . . . . Critical Kills . | . . . . Critical Parts Destroyed . | . . . . Melee Attacks 3 | . . 3 . Impact . | . . . . Slashing 3 | . . 3 . Piercing . | . . . . Sneak Attacks . | . . . . Combat Hostiles . | . . . . Follow-up Attacks . | . . . . Damage Inflicted 2136 | . . 230 1906 Guns 833 | . . 215 618 Cannons . | . . . . Explosions 1286 | . . . 1286 Melee . | . . . . Ramming 17 | . . 15 2 Kinetic 833 | . . 215 618 Thermal . | . . . . Explosive 1286 | . . . 1286 Electromagnetic . | . . . . Impact . | . . . . Slashing . | . . . . Piercing . | . . . . Highest Corruption . | . . . . Average Corruption . | . . . . Corruption Purged . | . . . . Overload Shots . | . . . . Overflow Damage 55 | . . . 55 Projectiles . | . . . . Explosions 55 | . . . 55 Melee . | . . . . Knockbacks . | . . . . Impact . | . . . . Kinetic . | . . . . Secondary . | . . . . Self-Inflicted Damage 9 | . . 9 . Shots 1 | . . 1 . Rammed 2 | . . 1 1 Targets Rammed 2 | . . 1 1 Kicked . | . . . . Crushed . | . . . . Highest Temperature 114 | . . 2 114 Average Temperature 46 | . . 2 46 Received Heat Transfer 654 | . . 60 594 Siege Activations . | . . . . Robots Corrupted . | . . . . Combat Hostiles . | . . . . Parts Fried . | . . . . Impact Corruptions . | . . . . Robots Melted . | . . . . Combat Hostiles . | . . . . Parts Melted . | . . . . Heat Transferred . | . . . . Parts Sabotaged . | . . . . Parts Stolen . | . . . . Parts Stripped . | . . . . Power Chain Reactions . | . . . . Missiles Intercepted . | . . . . Alert | -11 -10 -9 -8 ------- Run | Scr Mat Mat Mat Peak Influence 602 | . . 180 602 Initial 76 | . . . 76 Average 169 | . . 99 328 Maximum Alert Level 2 | . . . 2 Low Security (%) 64 | 100 100 100 9 Level 1 25 | . . . 66 Level 2 9 | . . . 24 Level 3 . | . . . . Level 4 . | . . . . Level 5 . | . . . . High Security . | . . . . Max Security . | . . . . Squads Dispatched 5 | . . 1 4 Investigation 1 | . . . 1 Extermination . | . . . . Reinforcement 4 | . . 1 3 Assault . | . . . . Garrison . | . . . . Intercept . | . . . . Construction Impeded 1 | . . . 1 Haulers Reinforced . | . . . . Stealth | -11 -10 -9 -8 --------- Run | Scr Mat Mat Mat Distress Signals 4 | . . 2 2 Communications Jammed . | . . . . Distress Signals . | . . . . Times Spotted 42 | . . 7 35 Peak Tracking Total 9 | . . 2 9 Tactical Retreats 5 | . . 1 4 Traps | -11 -10 -9 -8 ------- Run | Scr Mat Mat Mat Traps Triggered 1 | . 1 . . Indirectly . | . . . . Trap Hack Attempts . | . . . . Triggered . | . . . . Disarmed . | . . . . Reprogrammed . | . . . . Reused . | . . . . Traps Extracted . | . . . . Installed . | . . . . Triggered . | . . . . Machines | -11 -10 -9 -8 ---------- Run | Scr Mat Mat Mat Machines Disabled 1 | . . . 1 Max in Single Turn 1 | . . . 1 Machines Sabotaged . | . . . . Garrisons Compromised . | . . . . Overloaded Fab Kills . | . . . . Fab Network Shutdowns . | . . . . Hacking | -11 -10 -9 -8 --------- Run | Scr Mat Mat Mat Machines Accessed 5 | . 1 3 1 Terminals 3 | . . 2 1 Fabricators . | . . . . Repair Stations . | . . . . Recycling Units 1 | . 1 . . Scanalyzers 1 | . . 1 . Garrison Access . | . . . . Total Hacks 19 | . 1 13 5 Successful 12 | . 1 8 3 Failed 7 | . . 5 2 Catastrophic 1 | . . . 1 Database Lockouts . | . . . . Manual 5 | . . 4 1 Terminals 10 | . . 5 5 Fabricators . | . . . . Repair Stations . | . . . . Recycling Units 1 | . 1 . . Scanalyzers 8 | . . 8 . Garrison Access . | . . . . Terminal Hacks 4 | . . 1 3 Prototype ID Bank 1 | . . . 1 Alert Level 1 | . . . 1 Locate Traps 1 | . . . 1 Hauler Manifests 1 | . . 1 . Fabricator Hacks . | . . . . Repair Station Hacks . | . . . . Recycling Unit Hacks 1 | . 1 . . Report Inventory 1 | . 1 . . Scanalyzer 7 | . . 7 . Insert Component 3 | . . 3 . Analyze 4 | . . 4 . Garrison Access Hacks . | . . . . Unauthorized Hacks . | . . . . Terminals . | . . . . Fabricators . | . . . . Repair Stations . | . . . . Recycling Units . | . . . . Scanalyzers . | . . . . Garrison Access . | . . . . Data Cores Recovered 1 | . . . 1 Used 1 | . . . 1 Hacking Detections 5 | . 1 3 1 Full Trace Events 2 | . . 1 1 Feedback Events . | . . . . Feedback Blocked . | . . . . Robot Schematics Acquired . | . . . . Robots Built . | . . . . Matter . | . . . . Time . | . . . . Total Robot Build Rating . | . . . . Part Schematics Acquired 3 | . . 3 . Parts Built . | . . . . Matter . | . . . . Time . | . . . . Total Part Build Rating . | . . . . Parts Repaired . | . . . . Time . | . . . . Parts Recycled . | . . . . Recycled Matter . | . . . . Retrieved Matter . | . . . . Retrieved Components . | . . . . Parts Scanalyzed 3 | . . 3 . Part Schematics Acquired 3 | . . 3 . Parts Damaged . | . . . . Bothacking | -11 -10 -9 -8 ------------ Run | Scr Mat Mat Mat Used RIF Installer . | . . . . Robots Hacked . | . . . . Non-combat . | . . . . Combat . | . . . . Robot Hacks Applied . | . . . . Relay Couplers Released . | . . . . Robots Rewired . | . . . . Allies Hacked . | . . . . Hacks Repelled . | . . . . Allies | -11 -10 -9 -8 -------- Run | Scr Mat Mat Mat Total Allies . | . . . . Largest Group . | . . . . Highest-Rated Group . | . . . . Highest-Rated Ally . | . . . . Total Orders . | . . . . Ally Attacks . | . . . . Total Damage . | . . . . Kills . | . . . . Allies Corrupted . | . . . . Allies Melted . | . . . . Intel | -11 -10 -9 -8 ------- Run | Scr Mat Mat Mat Robot Analysis Total . | . . . . Derelict Logs Recovered . | . . . . Drone Launches . | . . . . Drone Recoveries . | . . . . Exploration | -11 -10 -9 -8 ------------- Run | Scr Mat Mat Mat Turns Passed 922 | 46 123 396 357 Spaces Moved 495 | 38 94 212 151 Core 5 | 3 . . 2 Treads 330 | 1 . 184 145 Legs . | . . . . Wheels 158 | 34 94 28 2 Hover 2 | . . . 2 Flight . | . . . . Fastest Speed 50 | 50 90 90 100 Average Speed 134 | 85 90 140 165 Slowest Speed 300 | 160 90 165 300 Overloaded Moves . | . . . . Propulsion Burnouts . | . . . . Robots Hopped . | . . . . Cave-ins Triggered . | . . . . Exploration Rate (%) 15 | 4 22 21 16 Regions Visited 3 Branch Regions . Pre-discovered Areas . | . . . . Known Exits Taken . | . . . . Unknown Exits Taken 3 | 1 1 1 . Scrap Searched . | . . . . Spaces Dug 11 | . . 11 . Terrain Destroyed 43 | . . 11 32 Melee 3 | . . 3 . Projectile . | . . . . AOE 40 | . . 8 32 Terrain Rammed . | . . . . Walls Destroyed . | . . . . Machines Disabled . | . . . . Actions | -11 -10 -9 -8 --------- Run | Scr Mat Mat Mat Total 682 | 48 133 282 219 Wait 95 | . 36 30 29 Move 492 | 37 93 211 151 Hop . | . . . . Pick Up 9 | 5 2 1 1 Fast Attach 16 | 6 1 4 5 Attach 1 | . . . 1 Detach . | . . . . Swap 11 | . . 11 . Drop 12 | . 1 9 2 Fire 41 | . . 12 29 Melee 3 | . . 3 . Ram 1 | . . 1 . Kick . | . . . . Crush 1 | . . . 1 Escape Stasis . | . . . . Rewire . | . . . . Trap . | . . . . Miscellaneous . | . . . . Route ------- -11/Scrapyard -10/Materials -9/Materials -8/Materials History --------- Turn | Location | Event 11 | -11/Scrapyard | Discovered new exit (range 15) 47 | -11/Scrapyard | Entered Materials 163 | -10/Materials | Discovered new exit (range 8) 170 | -10/Materials | Entered another Materials area 170 | -9/Materials | Evolved 2 slots: Utility x2 312 | -9/Materials | Build established: Mutant 484 | -9/Materials | Discovered new exit (range 14) 566 | -9/Materials | Entered another Materials area 566 | -8/Materials | Evolved 2 slots: Propulsion x1, Weapon x1 891 | -8/Materials | Destroyed 8 combat bots 923 | -8/Materials | Core integrity fell below 50% 923 | -8/Materials | Self-destructed Last Messages --------------- 00880_ K-01 Serf collects debris. 00882_ Acquired 15 matter. 00890_ R-06 Scavenger collects Heat Sink. 00891_ Hrd. Medium Armor Plating destroyed. 00892_ Acquired 60 matter. 00895_ Acquired Actuator Array. 00898_ Imp. Ion Engine destroyed. 00901_ Gravmag System severed. 00906_ Enh. Autogun destroyed. 00909_ Acquired EM Shotgun. 00910_ Mni. Grenade Launcher destroyed. 00911_ Adv. Treads destroyed. 00913_ EM Shotgun destroyed. 00916_ Enh. Autogun destroyed. 00917_ R-06 Scavenger inserts Lgt. Nuclear Core into recycling unit. 00920_ ECM Suite destroyed. 00920_ R-06 Scavenger inserts Aluminum Leg into recycling unit. 00922_ Penetrated by Slug. 00922_ Imp. Ion Engine destroyed. 00923_ Slug penetrates Wall. Map ----- +----------------------------------------------------+ | ?????????????????????????????????????????????????? | | ?????????????????????????????????????????????????? | | ?????????????????????????????????????????????????? | | ?????????????????????????????????????????????????? | | ?????????????????????????????????????????????????? | | ?????????????????????????????????????????????????? | | ?????????????????????????????????????????????????? | | ?????????????????????????????????????????????????? | | ?????????????????????????????????????????????????? | | ?????????????????????????????????????????????????? | | ?????????????????????????????????????????????????? | | ?????????????????????????????????????????????????? | | ?????????????????????????????? ???????????????? | | ?????????????????????????????? ???????????????? | | ?????????????????????????????" ???????????????? | | ????????????????????????????"" ???????????????? | | ????????????????????????????"" ???????????????? | | ????????????????????????????" ???????????????? | | ????????????????????????????" ????????????????? | | ????????????????????????????? ????????????????? | | ??????????????????#####?????? ????????????????? | | ??????????????????? ????? ????????????????? | | ???????????????????? ?????? ????????????????? | | ?????????????????????? ????? ????????????????? | | ??????????????????######;####?# #???????????????#? | | ??????????????????# """ @l #?# #?????????????# ## | | ?????????????????## "Y" ### ##??????????? | | ?????????????????# "r"Y gg## ############ | | ?????????????????## ]]hg/h = = | | ??????????????????# """ ]* a## # | | ??????????????????# """ ]! #### ! | | ??????????????????# """ #??# !! | | ??????????????????# w !#??# [= "" | | ??????????????????######/####??# ! " | | ???????????????????????# ??????# [ " " | | ???????????????????????# ??????# | | ???????????????????????# ??????## | | ???????????????????????# ???????# % | | ???????????????????????# ???????## | | ???????????????????????# ????????# | | ???????????????????????? ????????# | | ?????????????????????????????????# ####### # | | ?????????????????????????????????# # # #? | | ?????????????????????????????????#!!!!==# / # #? | | ?????????????????????????????????#!!!! =# #*#? | | ?????????????????????????????????######## " # #? | | ????????????????????????????????????????# T / #? | | ????????????????????????????????????????# " # #? | | ????????????????????????????????????????# # #? | | ????????????????????????????????????????####### #? | +----------------------------------------------------+ Best States ------------- Heat Dissipation 45 Energy Generation 12 Energy Capacity 265 Matter Stores 240 Matter Capacity 300 Sight Range 16 Terrain Scan Density 10 ECM Strength 1 Armor Coverage 225 Reclamation Efficiency 10 Evasion (%) 44 Recoil Reduction 1 Item Schematics ----------------- Wheel | -9/Materials | Scanalyzed Grenade Launcher | -9/Materials | Scanalyzed Aluminum Leg | -9/Materials | Scanalyzed Robot Schematics ------------------ None Fabricated ------------ Nothing Alien Tech Used ----------------- None Achievements -------------- None Challenges ------------ None Game ------ Seed RocketContainmentDriver Manual? 0 Play Time 00:12:15 Cumulative 70.4 hours Start 2022.02.06 @ 18:44:34 End 2022.02.06 @ 19:51:12 Sessions 3 Manual Loads 0 Difficulty Rogue Special Mode None Game No. 80 Rogue 80 Adventurer 0 Explorer 0 Win Type - Total 0 Types 0/0/0/0/0/0/0/0/0 Lore% 48 Gallery% 52 Achievement% 35 Wizard Run 0 Options --------- ASCII 0 Keyboard 1 Movement Numpad Keybinds 0 Fullscreen 0 Font 32/Terminus Map View 76x50 Tactical HUD 1 Map Filters NONE Filters NONE Steam 1 RUN: 61f7d852-e308-41db-aa5b-d781f67d8366